Cogmind - Beta 16 @@@ ROGUE MODE // 2025.11.26 @ 23:11:05 Player: The Overplayer Result: Smashed by cave-in Performance ------------- Evolutions (0) 0 Regions Visited (4) 800 Robots Destroyed (18) 90 Value Destroyed (367) 367 Prototype IDs (2) 40 Alien Tech Used (0) 0 Bonus (7) 7 TOTAL SCORE: 1304 Bonus ------- Follower Combat Kills 7 Cogmind --------- Core Integrity 0/250 Matter 273/300 Energy 150/150 System Corruption 0% Temperature Cool (0) Movement Walking (120) Location -9/Mines Parts ------- > --- POWER (1) -------- Light Angular Momentum Engine > --- PROPULSION (2) --- Aluminum Leg Carbon-fiber Leg > --- UTILITY (2) ------ Small Storage Unit Signal Interpreter > --- WEAPON (2) ------- Gauss Rifle Makeshift Shrapnel Gun > --- INVENTORY (8) ---- Nuclear Core Aluminum Leg Targeting Computer Makeshift Transmission Jammer Makeshift Hacking Suite Ion Cannon Mining Laser Peak State ------------ > --- POWER ------------ Light Angular Momentum Engine > --- PROPULSION ------- Aluminum Leg Carbon-fiber Leg > --- UTILITY ---------- Small Storage Unit Signal Interpreter > --- WEAPON ----------- Gauss Rifle Makeshift Shrapnel Gun > --- INVENTORY -------- Nuclear Core Aluminum Leg Targeting Computer Makeshift Transmission Jammer Makeshift Hacking Suite Ion Cannon Mining Laser [Rating: 20] Favorites ----------- Power Light Angular Momentum Engine Engine Light Angular Momentum Engine Power Core Light Nuclear Core Propulsion Aluminum Leg Leg Aluminum Leg Hover Unit Backup Propulsion I Utility Small Storage Unit Storage Small Storage Unit Processor Signal Interpreter Weapon Ion Cannon Energy Gun Small Laser Energy Cannon Ion Cannon Ballistic Gun Assault Rifle Launcher Rocket Launcher Special Weapon Mining Laser Build | -11 -10 -10 -10 -9 ------- Run | Yrd Mat Min Exi Min Slots Evolved . | . . . . . Power . | . . . . . Propulsion . | . . . . . Utility . | . . . . . Weapon . | . . . . . Parts Attached 24 | 6 9 6 1 2 Power 3 | 1 1 1 . . Engine 2 | 1 . 1 . . Core 1 | . 1 . . . Reactor . | . . . . . Propulsion 8 | 2 3 2 1 . Treads . | . . . . . Leg 8 | 2 3 2 1 . Wheel . | . . . . . Hover . | . . . . . Flight . | . . . . . Utility 3 | 1 2 . . . Device . | . . . . . Storage 1 | 1 . . . . Processor 2 | . 2 . . . Hackware . | . . . . . Protection . | . . . . . Artifact . | . . . . . Weapon 10 | 2 3 3 . 2 Energy Gun 1 | 1 . . . . Energy Cannon 1 | . . 1 . . Ballistic Gun 6 | 1 3 . . 2 Ballistic Cannon . | . . . . . Launcher 1 | . . 1 . . Special Weapon 1 | . . 1 . . Impact Weapon . | . . . . . Slashing Weapon . | . . . . . Piercing Weapon . | . . . . . Special Melee Weapon . | . . . . . Unidentified Prototypes . | . . . . . Parts Lost 3 | . 2 . . 1 Power . | . . . . . Propulsion 1 | . 1 . . . Utility . | . . . . . Weapon 2 | . 1 . . 1 Highest Loss Streak 2 | . 2 . . 1 To Critical Strikes . | . . . . . Average Backups 7 | . 5 7 8 7 Power . | . . . 1 1 Propulsion 1 | . 1 2 1 1 Utility 2 | . 2 2 2 3 Weapon 1 | . . 1 2 2 Tool/Special . | . . . . . Unused Backups 11 | . 1 3 3 4 Power 1 | . . . . 1 Propulsion . | . . . . . Utility 6 | . 1 1 1 3 Weapon 4 | . . 2 2 . Tool/Special . | . . . . . Average Slot Usage (%) 98 | . 94 100 100 100 Engine 13 | . 12 13 14 14 Leg 27 | . 25 28 28 28 Storage 14 | . 14 14 14 14 Processor 13 | . 11 14 14 14 Energy Gun 1 | . 6 . . . Energy Cannon 9 | . . 13 14 5 Ballistic Gun 6 | . 19 3 . 17 Launcher 8 | . . 8 14 5 Peak Build Rating 20 | 6 9 17 18 20 Average Rating 14 | 4 6 16 17 19 On Entrance 10 | . 6 9 17 18 Avg Prop Armor Cover (%) . | . . . . . Naked Turns . | . . . . . Heaviest Build 24 | 13 13 24 24 24 Greatest Support 25 | 20 20 25 25 25 Greatest Overweight (x) 1 | . 1 . . . Average Overweight (x) . | . . . . . Largest Inventory Capacity 8 | 8 8 8 8 8 Average Capacity 7 | 7 8 8 8 8 Most Carried 8 | . 8 8 8 8 Average Carried 7 | . 5 7 7 7 Final Capacity 8 | 8 8 8 8 8 Final Carried 8 | . 8 8 8 7 Class Distribution -------------------- 100% | Mutant Dominant Class ---------------- Mutant | -10/Materials Mutant | -10/Mines Mutant | -10/Exiles Mutant | -9/Mines Resources | -11 -10 -10 -10 -9 ----------- Run | Yrd Mat Min Exi Min Matter Collected 714 | 260 149 135 95 75 Remotely . | . . . . . Salvage Created 657 | . 375 100 121 61 Parts 36 | . 18 11 5 2 Haulers Intercepted 2 | . 2 . . . Recyclers Shooed . | . . . . . Parts Field Recycled . | . . . . . Retrieved Matter . | . . . . . Parts Self-Destructed . | . . . . . Prevented . | . . . . . Parts Restored . | . . . . . Kills | -11 -10 -10 -10 -9 ------- Run | Yrd Mat Min Exi Min Combat Hostiles Destroyed 17 | . 6 3 . 8 Guns 9 | . 6 . . 3 Cannons 2 | . . . . 2 AOE 6 | . . 3 . 3 Classes Destroyed 8 | . 3 3 . 2 Worker 2 | . . 2 . . Builder 1 | . . 1 . . Hauler 2 | . 2 . . . Watcher 1 | . 1 . . . Swarmer 5 | . . 3 . 2 Grunt 6 | . 6 . . . Demolisher 1 | . . . . 1 Assembled 5 | . . . . 5 Best Kill Streak 5 | . 3 5 . 5 Combat Bots Only 5 | . 2 3 . 5 Max Kills in Single Turn 3 | . 1 3 . 2 Gunslinging . | . . . . . Exploded 2 | . . 1 . 2 Melee . | . . . . . Uniques/NPCs Destroyed . | . . . . . Combat | -11 -10 -10 -10 -9 -------- Run | Yrd Mat Min Exi Min Hostile Shots Fired 67 | . 45 4 . 18 Missed 13 | . 8 . . 5 Hits 54 | . 37 4 . 13 Melee 2 | . . . . 2 Projectile 52 | . 37 4 . 11 AOE 5 | . . . . 5 Critical Strikes 1 | . 1 . . . Damage Taken 925 | . 475 61 . 389 Core 263 | . 92 20 . 151 Absorbed by Shields . | . . . . . Core Remaining (%) 100 | 100 . . . . Volleys Fired 92 | . 41 17 14 20 Largest 2 | . 2 2 1 2 Hottest 160 | . 60 160 60 60 Shots Fired 134 | . 77 18 14 25 Gun 91 | . 77 . . 14 Cannon 29 | . . 6 14 9 Launcher 6 | . . 4 . 2 Special 8 | . . 8 . . Kinetic 77 | . 63 . . 14 Thermal 51 | . 14 14 14 9 Explosive 6 | . . 4 . 2 Electromagnetic . | . . . . . Robot Hit Streak 8 | . 8 3 4 5 Robot Miss Streak 6 | . 5 3 2 6 Penetration Max . | . . . . . Secondary Targets 1 | . 1 . . . Max Gunslinging Chain 1 | . 1 . . . Shots Hit Robots 72 | . 44 6 8 14 Core Hits 43 | . 17 8 2 16 Critical Kills . | . . . . . Critical Parts Destroyed . | . . . . . Critical Strikes . | . . . . . Melee Attacks . | . . . . . Impact . | . . . . . Slashing . | . . . . . Piercing . | . . . . . Sneak Attacks . | . . . . . Combat Hostiles . | . . . . . Follow-up Attacks . | . . . . . Damage Inflicted 1468 | . 491 323 251 403 Guns 666 | . 491 . . 175 Cannons 367 | . . 46 251 70 Explosions 411 | . . 253 . 158 Melee . | . . . . . Ramming . | . . . . . Kinetic 576 | . 401 . . 175 Thermal 481 | . 90 70 251 70 Explosive 411 | . . 253 . 158 Electromagnetic . | . . . . . Impact . | . . . . . Slashing . | . . . . . Piercing . | . . . . . Highest Corruption . | . . . . . Average Corruption . | . . . . . Corruption Purged . | . . . . . Corruption Blocked . | . . . . . Overload Shots . | . . . . . Overflow Damage 33 | . . 10 23 . Projectiles 33 | . . 10 23 . Explosions . | . . . . . Melee . | . . . . . Knockbacks . | . . . . . Impact . | . . . . . Kinetic . | . . . . . Secondary . | . . . . . Self-Inflicted Damage 29 | . . 29 . . Shots 1 | . . 1 . . Rammed . | . . . . . Targets Rammed . | . . . . . Kicked . | . . . . . Crushed . | . . . . . Highest Temperature 240 | . 48 82 240 166 Average Temperature 51 | . 16 33 97 81 Received Heat Transfer 285 | . 285 . . . Siege Activations . | . . . . . Martial Activations . | . . . . . Shielding Activations . | . . . . . Robots Disrupted . | . . . . . Combat Hostiles . | . . . . . Robots Corrupted . | . . . . . Combat Hostiles . | . . . . . Parts Fried . | . . . . . Impact Corruptions . | . . . . . Robots Melted . | . . . . . Combat Hostiles . | . . . . . Parts Melted . | . . . . . Heat Transferred 842 | . 200 124 407 111 Parts Sabotaged . | . . . . . Parts Stolen . | . . . . . Parts Stripped . | . . . . . Power Chain Reactions . | . . . . . Alert | -11 -10 -10 -10 -9 ------- Run | Yrd Mat Min Exi Min Maximum Alert Level . | . . . . . Low Security (%) 100 | 100 100 100 . 100 Level 1 . | . . . . . Level 2 . | . . . . . Level 3 . | . . . . . Level 4 . | . . . . . Level 5 . | . . . . . High Security . | . . . . . Max Security . | . . . . . Peak Influence 136 | . 77 136 . 55 Initial 18 | . . 18 . . Average 20 | . 20 24 . 13 Influence Increases 504 | . 226 146 10 122 Destroy 0b10 Robot/C 260 | . 120 60 . 80 Destroy 0b10 Robot/NC 45 | . 15 20 10 . Destroy Leader 66 | . 36 10 . 20 Allied During Kill 6 | . . . . 6 Successful Hack 24 | . 24 . . . Disable Machine 30 | . . 30 . . Destroy Structure 43 | . 1 26 . 16 Lose Combat Pursuer 30 | . 30 . . . Influence Decreases 474 | . 179 193 10 92 Entered New Map 29 | . . 29 . . Time Decay 375 | . 159 164 10 42 Lost Part 30 | . 20 . . 10 Lost Ally 40 | . . . . 40 Squads Dispatched 2 | . 2 . . . Investigation . | . . . . . Extermination . | . . . . . Reinforcement 2 | . 2 . . . Assault . | . . . . . Garrison . | . . . . . Intercept . | . . . . . Searches Triggered . | . . . . . Construction Impeded . | . . . . . Haulers Reinforced . | . . . . . Active Scanning Responses . | . . . . . Cargo Convoy Interrupts . | . . . . . Stealth | -11 -10 -10 -10 -9 --------- Run | Yrd Mat Min Exi Min Distress Signals 3 | . 2 1 . . Communications Jammed . | . . . . . Distress Signals . | . . . . . Times Spotted 25 | . 14 3 . 8 Peak Tracking Total 10 | . 6 3 . 10 Tactical Retreats 3 | . 2 . . 1 Traps | -11 -10 -10 -10 -9 ------- Run | Yrd Mat Min Exi Min Traps Triggered 1 | . . 1 . . Indirectly . | . . . . . Trap Hack Attempts . | . . . . . Triggered . | . . . . . Disarmed . | . . . . . Reprogrammed . | . . . . . Reused . | . . . . . Traps Extracted . | . . . . . Installed . | . . . . . Triggered . | . . . . . Machines | -11 -10 -10 -10 -9 ---------- Run | Yrd Mat Min Exi Min Machines Disabled 2 | . . 2 . . Max in Single Turn 1 | . . 1 . . Machines Repaired . | . . . . . Machines Dismantled . | . . . . . Machines Sabotaged . | . . . . . Overloaded Fab Kills . | . . . . . Hacking | -11 -10 -10 -10 -9 --------- Run | Yrd Mat Min Exi Min Machines Accessed 10 | . 6 1 3 . Terminals 4 | . 4 . . . Fabricators . | . . . . . Repair Stations 1 | . 1 . . . Recycling Units 1 | . 1 . . . Scanalyzers . | . . . . . Garrison Access . | . . . . . Total Hacks 60 | . 17 1 42 . Successful 53 | . 10 1 42 . Failed 7 | . 7 . . . Catastrophic 1 | . 1 . . . Database Lockouts . | . . . . . Manual 2 | . . . 2 . Terminals 11 | . 11 . . . Fabricators . | . . . . . Repair Stations 2 | . 2 . . . Recycling Units 4 | . 4 . . . Scanalyzers . | . . . . . Garrison Access . | . . . . . Terminal Hacks 49 | . 6 1 42 . Record 42 | . . . 42 . Prototype ID Bank 1 | . 1 . . . Open Door 1 | . . 1 . . Level Access Points 1 | . 1 . . . Emergency Access Points 1 | . 1 . . . Locate Traps 1 | . 1 . . . Patrol Status 1 | . 1 . . . Reinforcement Status 1 | . 1 . . . Fabricator Hacks . | . . . . . Repair Station Hacks 1 | . 1 . . . Refit 1 | . 1 . . . Recycling Unit Hacks 3 | . 3 . . . Process 1 | . 1 . . . Report Inventory 1 | . 1 . . . Retrieve Matter 1 | . 1 . . . Scanalyzer . | . . . . . Garrison Access Hacks . | . . . . . Unauthorized Hacks . | . . . . . Terminals . | . . . . . Fabricators . | . . . . . Repair Stations . | . . . . . Recycling Units . | . . . . . Scanalyzers . | . . . . . Garrison Access . | . . . . . Data Cores Recovered . | . . . . . Used . | . . . . . Hacking Detections 6 | . 6 . . . Full Trace Events . | . . . . . Feedback Events . | . . . . . Feedback Blocked . | . . . . . Robot Schematics Acquired . | . . . . . Robots Built . | . . . . . Authchips . | . . . . . Time . | . . . . . Total Robot Build Rating . | . . . . . Part Schematics Acquired . | . . . . . Parts Built . | . . . . . Authchips . | . . . . . Time . | . . . . . Total Part Build Rating . | . . . . . Part Studies Acquired . | . . . . . Parts Repaired . | . . . . . Time . | . . . . . Parts Recycled . | . . . . . Recycled Matter 350 | . 350 . . . Retrieved Matter 396 | . 396 . . . Retrieved Components . | . . . . . Parts Scanalyzed . | . . . . . Part Schematics Acquired . | . . . . . Parts Damaged . | . . . . . Bothacking | -11 -10 -10 -10 -9 ------------ Run | Yrd Mat Min Exi Min Used RIF Installer . | . . . . . Robots Hacked . | . . . . . Non-combat . | . . . . . Combat . | . . . . . Robot Hacks Applied . | . . . . . Relay Couplers Released . | . . . . . Fabnet Peak Effective % . | . . . . . Robots Rewired 2 | . . . 2 . Allies Hacked . | . . . . . Hacks Repelled . | . . . . . Allies | -11 -10 -10 -10 -9 -------- Run | Yrd Mat Min Exi Min Total Allies 3 | . . 1 2 . Largest Group 2 | . . 1 2 2 Highest-Rated Group 31 | . . 31 29 29 Highest-Rated Ally 31 | . . 31 21 21 Total Orders . | . . . . . Ally Attacks 11 | . . . . 11 Total Damage 77 | . . . . 77 Kills 1 | . . . . 1 Allies Corrupted . | . . . . . Allies Melted . | . . . . . Intel | -11 -10 -10 -10 -9 ------- Run | Yrd Mat Min Exi Min Active Infowar (turns) 266 | . 266 . . . T.N.C. 266 | . 266 . . . Robot Analysis Total . | . . . . . Derelict Logs Recovered 1 | . . 1 . . Drone Launches . | . . . . . Drone Recoveries . | . . . . . Exploration | -11 -10 -10 -10 -9 ------------- Run | Yrd Mat Min Exi Min Turns Passed 2572 | 61 582 782 974 173 Spaces Moved 1886 | 46 371 591 772 106 Core 4 | 4 . . . . Treads . | . . . . . Legs 1835 | 42 324 591 772 106 Wheels . | . . . . . Hover 47 | . 47 . . . Flight . | . . . . . Fastest Speed 50 | 50 76 120 120 120 Average Speed 118 | 113 115 120 120 120 Slowest Speed 190 | 120 190 120 120 120 Overloaded Moves . | . . . . . Propulsion Burnouts . | . . . . . Robots Hopped . | . . . . . Potential Cave-ins . | . . . . . Cave-ins Triggered 1 | . . . . 1 Exploration Rate (%) 53 | 4 68 90 92 15 Regions Visited 4 Branch Regions 3 Pre-discovered Areas 1 | . . . 1 . Known Exits Taken 3 | . 1 1 1 . Unknown Exits Taken 1 | 1 . . . . Scrap Searched 1 | . . 1 . . Spaces Dug 2 | . . 2 . . Terrain Destroyed 66 | . . 34 . 32 Melee . | . . . . . Projectile 5 | . . 2 . 3 AOE 61 | . . 32 . 29 Terrain Rammed . | . . . . . Walls Destroyed . | . . . . . Machines Disabled . | . . . . . Actions | -11 -10 -10 -10 -9 --------- Run | Yrd Mat Min Exi Min Total 2071 | 51 455 630 807 128 Wait 13 | . 8 . 5 . Move 1882 | 45 370 590 771 106 Hop . | . . . . . Pick Up 22 | . 11 6 5 . Fast Attach 15 | 6 6 3 . . Attach 5 | . 2 2 . 1 Detach 3 | . 3 . . . Swap 10 | . 4 4 1 1 Drop 23 | . 10 8 5 . Fire 92 | . 41 17 14 20 Melee . | . . . . . Ram . | . . . . . Kick . | . . . . . Crush . | . . . . . Escape Stasis . | . . . . . Rewire 6 | . . . 6 . Trap . | . . . . . Miscellaneous . | . . . . . Route ------- -11/Scrapyard -10/Materials (discovered 4 exits: *Mat x3 / *Min) -10/Mines (discovered 2 exits: *Mat / *Exi) -10/Exiles (discovered 2 exits: *Min x2) -9/Mines History --------- Turn | Location | Event 3 | -11/Scrapyard | Discovered new exit (range 15) 62 | -11/Scrapyard | Entered Materials 63 | -10/Materials | Met a group of wandering Federalists 314 | -10/Materials | Build established: Mutant 414 | -10/Materials | Discovered new exit (range 4) 420 | -10/Materials | Identified exit to Materials 603 | -10/Materials | Discovered new exit (range 15) 643 | -10/Materials | Identified exit to Mines 644 | -10/Materials | Entered Mines 654 | -10/Mines | Met a Derelict who couldn't figure out how to use a Trap Extractor 679 | -10/Mines | Met a Derelict bent on vengeance 802 | -10/Mines | Received a Rocket Launcher from a helpful Derelict 985 | -10/Mines | Discovered exit to Materials (range 5) 1078 | -10/Mines | Received a Mining Laser from a helpful Derelict 1245 | -10/Mines | Excavation squad dispatched 1245 | -10/Mines | A large section of the Mines collapsed 1255 | -10/Mines | Learned Materials stockpile data 1314 | -10/Mines | A weapon hastily lodged in a ceiling crevice suddenly fell to the ground 1420 | -10/Mines | Deemed a non-threat by the Exiles lab entrance 1420 | -10/Mines | Discovered new exit (range 5) 1425 | -10/Mines | Identified exit to Exiles 1426 | -10/Mines | Entered Exiles 1426 | -10/Exiles | Found Exiles lab destroyed 2091 | -10/Exiles | Learned location of Zion (-6) 2179 | -10/Exiles | Discovered new exit (range 14) 2191 | -10/Exiles | Identified exit to Mines 2329 | -10/Exiles | Discovered exit to Mines (range 14) 2400 | -10/Exiles | Entered Mines 2400 | -9/Mines | Accompanied by 2 allies 2436 | -9/Mines | Assembled infested the area 2564 | -9/Mines | Core integrity fell below 50% 2570 | -9/Mines | Core integrity fell below 20% 2574 | -9/Mines | Crushed by falling debris 2574 | -9/Mines | Smashed by cave-in Last Messages --------------- 02424_ S-10 Pest destroyed. 02436_ ALERT: Infestation in the mines, dispatching Demolisher response squad. 02448_ Mercenary 1a destroyed. 02450_ as-62336 destroyed. 02452_ as-32463 destroyed. 02463_ as-97463 destroyed. 02468_ Rocket Launcher destroyed. 02470_ Slug penetrates as-34858. 02473_ as-34858 destroyed. 02476_ Acquired 7 matter. 02477_ Acquired 3 matter. 02482_ Acquired 13 matter. 02483_ Acquired 49 matter. 02485_ Acquired 3 matter. 02564_ Slug penetrates D-53 Grenadier. 02572_ Slug penetrates Wall. 02572_ D-53 Grenadier destroyed. 02574_ The unstable cave ceiling collapses. 02574_ Crushed by falling debris. Map ----- +----------------------------------------------------+ | ????????????????????????????????????????????? | | ????????????????????????????????????????????? | | ????????????????????????????????????????????? | | ????????????????????????????????????????????? | | ????????????????????????????????????????????? | | ????????????????????????????????????????????? | | ????????????????????????????????????????????? | | ????????????????????????????????????????????? | | ????????????????????????????????????????????? | | ????????????????????????????????????????????? | | ????????????????????????????????????????????? | | ????????????????????????????????????????????? | | ????????????????????????? ??????????????????? | | ???????????????????????? ??????????????????? | | ???????????????????????? ???????????????????? | | ???????????????????###?? ???????????????????? | | ???????????????????# ## ???????????????????? | | ??????????????????## #%%##??????????????????? | | ??????????????????# %=*#??????????????????# | | ????????# ######### # ##???????????????### | | ????????# $ # #???????????##### | | ????????# % % # ????????????# | | ?????????????##### % ##????????????# ### | | ?????????????????# ##???????????# #?## | | ????????????????## #???????????# #??# | | ????????????????# @ #####???????# #?## | | ????????????????# # ##?????## ### | | ????????????????## ##???## | | ????????????????# ;#?### | | ????????????????## *[### #### | | ?????????????????## =## #??## | | ??????????????????## #;; [=%[ %= ##???? | | ???????????????????########## *#### ##????? | | ????????????????????????????####??#####?????? | | ????????????????????????????????????????????? | | ????????????????????????????????????????????? | | ????????????????????????????????????????????? | | ????????????????????????????????????????????? | | ????????????????????????????????????????????? | | | | | | | | | | | | | | | | | | | | | | | +----------------------------------------------------+ Best States ------------- Heat Dissipation 25 Energy Generation 18 Energy Capacity 250 Matter Stores 300 Matter Capacity 300 Sight Range 16 Terrain Scan Density 10 Evasion (%) 55 Item Schematics ----------------- None Robot Schematics ------------------ None Fabricated ------------ Nothing Repaired ---------- Nothing Studied --------- None Alien Tech Used ----------------- None Achievements -------------- None Challenges ------------ None Game ------ Seed ShockSensorManipulator Manual? 0 Play Time 00:24:40 Cumulative 31.1 hours Start 2025.11.26 @ 22:48:12 End 2025.11.26 @ 23:11:05 Sessions 1 Manual Loads 0 Difficulty Rogue Special Mode None Game No. 31 Rogue 31 Adventurer 0 Explorer 0 Win Type - Total 0 Types 0/0/0/0/0/0/0/0/0/0 Lore% 16 Gallery% 30 Achievement% 20 Wizard Run 0 Options --------- Layout 1 ASCII 0 Keyboard 0 Movement Mouse Keybinds 0 Fullscreen 1 Font 24/Smallcaps Map View 50x35 Zoom Use 0% Tactical HUD 1 Map Filters NONE Filters NONE Steam 1 RUN: 144554ca-a025-4e14-b13c-55fbd957425e